fUSD/lending_fUSD_20240803
["ID","MTS","AMOUNT","RATE_DAILY","PERIOD"]
[334003440,1722672675031,-1153.18,0.00017534,2]
[334003441,1722672675040,-1779.35,0.00017534,2]
[334003442,1722672675050,-806.0,0.00017534,2]
[334003443,1722672675059,-520.82,0.00017534,2]
[334003444,1722672675069,-1222.12,0.00017534,2]
[334003445,1722672675079,-500.0,0.00017534,2]
[334003446,1722672675088,-543.96,0.00017534,2]
[334003447,1722672675099,-500.0,0.00017534,2]
[334003448,1722672675110,-500.0,0.00017534,2]
[334003449,1722672675121,-2755.57,0.00017534,2]
[334003450,1722672675130,-1766.59,0.00017534,2]
[334003451,1722672675140,-500.0,0.00017534,2]
[334003452,1722672675150,-500.0,0.00017534,2]
[334003453,1722672675160,-6784.85,0.00017534,2]
[334003454,1722672675170,-500.0,0.00017534,2]
[334003455,1722672675180,-1170.99,0.00017534,2]
[334003456,1722672675189,-500.0,0.00017534,2]
[334003457,1722672675199,-1509.0,0.00017534,2]
[334003458,1722672675209,-2272.41,0.00017534,2]
[334003459,1722672675218,-1134.66,0.00017534,2]
[334003460,1722672675228,-788.7,0.00017534,2]
[334003461,1722672675237,-500.0,0.00017534,2]
[334003462,1722672675247,-438.42617661,0.00017534,2]
[334003463,1722672675256,-500.0,0.00017534,2]
[334003464,1722672675266,-500.0,0.00017534,2]
[334003465,1722672675275,-500.0,0.00017534,2]
[334003466,1722672675285,-500.0,0.00017534,2]
[334003467,1722672675295,-556.92,0.00017534,2]
[334003468,1722672675304,-851.8,0.00017534,2]
[334003469,1722672675314,-500.0,0.00017534,2]
[334003470,1722672675323,-829.82,0.00017534,2]
[334003471,1722672675606,-500.0,0.00017534,2]
[334003472,1722672675672,-978.08,0.00017534,2]
[334003473,1722672675682,-3555.81,0.00017534,2]
[334003474,1722672675692,-1000.11,0.00017534,2]
[334003475,1722672675701,-500.0,0.00017534,2]
[334003476,1722672675712,-1173.97,0.00017534,2]
[334003477,1722672675722,-500.0,0.00017534,2]
[334003478,1722672675732,-500.0,0.00017534,2]
[334003479,1722672675742,-6514.15,0.00017534,2]
[334003480,1722672675752,-500.0,0.00017534,2]
[334003481,1722672675762,-828.77,0.00017534,2]
[334003482,1722672675772,-1272.15,0.00017534,2]
[334003483,1722672675782,-3333.78,0.00017534,2]
[334003484,1722672675792,-2015.77,0.00017534,2]
[334003485,1722672675802,-1643.08,0.00017534,2]
[334003486,1722672675812,-1598.98,0.00017534,2]
[334003487,1722672675822,-3382.08,0.00017534,2]
[334003488,1722672675831,-1056.18,0.00017534,2]
[334003489,1722672675841,-1410.26,0.00017534,2]
[334003490,1722672675851,-500.0,0.00017534,2]
[334003491,1722672675860,-500.0,0.00017534,2]
[334003492,1722672675869,-657.49,0.00017534,2]
[334003493,1722672675879,-500.0,0.00017534,2]
[334003494,1722672675889,-1314.36,0.00017534,2]
[334003495,1722672675899,-5105.47,0.00017534,2]
[334003496,1722672675910,-1117.0,0.00017534,2]
[334003497,1722672675920,-863.0,0.00017534,2]
[334003498,1722672675930,-988.31,0.00017534,2]
[334003499,1722672675940,-500.0,0.00017534,2]
[334003500,1722672675950,-588.88,0.00017534,2]
[334003501,1722672675961,-916.53,0.00017534,2]
[334003502,1722672675971,-500.0,0.00017534,2]
[334003503,1722672675982,-3858.07,0.00017534,2]
[334003504,1722672675992,-886.61,0.00017534,2]
[334003505,1722672676002,-2523.24,0.00017534,2]
[334003506,1722672676012,-1144.92,0.00017534,2]
[334003507,1722672676021,-500.0,0.00017534,2]
[334003508,1722672676031,-1055.01,0.00017534,2]
[334003509,1722672676040,-500.0,0.00017534,2]
[334003510,1722672676050,-596.99,0.00017534,2]
[334003511,1722672676060,-500.0,0.00017534,2]
[334003512,1722672676069,-500.0,0.00017534,2]
[334003513,1722672676079,-867.52,0.00017534,2]
[334003514,1722672676088,-758.07,0.00017534,2]
[334003515,1722672676098,-500.0,0.00017534,2]
[334003516,1722672676108,-500.0,0.00017534,2]
[334003517,1722672676117,-1413.54,0.00017534,2]
[334003518,1722672676128,-500.0,0.00017534,2]
[334003519,1722672676138,-626.69,0.00017534,2]
[334003520,1722672676148,-1086.46,0.00017534,2]
[334003521,1722672676158,-500.0,0.00017534,2]
[334003522,1722672676168,-500.0,0.00017534,2]
[334003523,1722672676178,-2041.55,0.00017534,2]
[334003524,1722672676188,-1048.09,0.00017534,2]
[334003525,1722672676199,-945.91,0.00017534,2]
[334003526,1722672676208,-503.04,0.00017534,2]
[334003527,1722672676219,-2243.32,0.00017534,2]
[334003528,1722672676229,-500.0,0.00017534,2]
[334003529,1722672676239,-1876.41,0.00017534,2]
[334003530,1722672676248,-876.92,0.00017534,2]
[334003531,1722672676258,-500.0,0.00017534,2]
[334003532,1722672676267,-596.72,0.00017534,2]
[334003533,1722672676277,-1974.73,0.00017534,2]
[334003534,1722672676287,-500.0,0.00017534,2]
[334003535,1722672676297,-849.08,0.00017534,2]
[334003536,1722672676306,-1000.0,0.00017534,60]
[334003537,1722672676316,-1836.41,0.00017534,2]
[334003538,1722672676333,-3536.23,0.00017534,2]
[334003539,1722672676350,-1295.33,0.00017534,2]
[334003540,1722672676359,-500.0,0.00017534,2]
[334003541,1722672676369,-2083.37,0.00017534,2]
[334003542,1722672676379,-444.70943411,0.00017534,2]
[334003543,1722672676389,-500.0,0.00017534,2]
[334003544,1722672676399,-500.0,0.00017534,2]
[334003545,1722672676409,-500.0,0.00017534,2]
[334003546,1722672676420,-500.0,0.00017534,2]
[334003547,1722672676429,-1001.94,0.00017534,2]
[334003548,1722672676439,-3080.78,0.00017534,2]
[334003549,1722672676448,-547.37,0.00017534,2]
[334003550,1722672676458,-500.0,0.00017534,2]
[334003551,1722672676468,-1224.2,0.00017534,2]
[334003552,1722672676478,-3054.54,0.00017534,2]
[334003553,1722672676488,-500.0,0.00017534,2]
[334003554,1722672676498,-1519.85,0.00017534,2]
[334003555,1722672676509,-1194.14,0.00017534,2]
[334003556,1722672676521,-793.38,0.00017534,2]
[334003557,1722672676530,-500.0,0.00017534,2]
[334003558,1722672676540,-871.03,0.00017534,2]
[334003559,1722672676549,-525.65,0.00017534,2]
[334003560,1722672676560,-1267.34,0.00017534,2]
[334003561,1722672676571,-500.0,0.00017534,2]
[334003562,1722672676581,-3366.59,0.00017534,2]
[334003563,1722672676590,-992.94,0.00017534,2]
[334003564,1722672676600,-555.73,0.00017534,2]
[334003565,1722672676609,-550.93,0.00017534,2]
[334003566,1722672676619,-500.0,0.00017534,2]
[334003567,1722672676628,-500.0,0.00017534,2]
[334003568,1722672676638,-642.28,0.00017534,2]
[334003569,1722672676649,-1662.23,0.00017534,2]
[334003570,1722672676659,-1946.82,0.00017534,2]
[334003571,1722672676669,-1212.94,0.00017534,2]
[334003572,1722672676679,-1900.41,0.00017534,2]
[334003573,1722672676689,-500.0,0.00017534,2]
[334003574,1722672676698,-2354.23,0.00017534,2]
[334003575,1722672676708,-937.73,0.00017534,2]
[334003576,1722672676717,-692.84,0.00017534,2]
[334003577,1722672676727,-1192.07,0.00017534,2]
[334003578,1722672676737,-1258.11,0.00017534,2]
[334003579,1722672676747,-500.0,0.00017534,2]
[334003580,1722672676757,-1060.96,0.00017534,2]
[334003581,1722672676768,-6100.7,0.00017534,2]
[334003582,1722672676779,-4981.79,0.00017534,2]
[334003583,1722672676788,-500.0,0.00017534,2]
[334003584,1722672676798,-2170.91,0.00017534,2]
[334003585,1722672676808,-937.04,0.00017534,2]
[334003586,1722672676818,-506.0061722,0.00017534,2]
[334003587,1722672676828,-2840.72,0.00017534,2]
[334003588,1722672676838,-4003.25,0.00017534,2]
[334003589,1722672676847,-804.77,0.00017534,2]
[334003590,1722672676857,-500.0,0.00017534,2]
[334003591,1722672676867,-500.0,0.00017534,2]
[334003592,1722672676876,-1151.68,0.00017534,2]
[334003593,1722672676886,-2144.3,0.00017534,2]
[334003594,1722672676896,-500.0,0.00017534,2]
[334003595,1722672676906,-721.28,0.00017534,2]
[334003596,1722672676917,-500.0,0.00017534,2]
[334003597,1722672676927,-1032.34,0.00017534,2]
[334003598,1722672676937,-549.7,0.00017534,2]
[334003599,1722672676946,-2037.25,0.00017534,2]
[334003600,1722672676958,-928.42,0.00017534,2]
[334003601,1722672676968,-3499.27,0.00017534,2]
[334003602,1722672676978,-1536.28,0.00017534,2]
[334003603,1722672676988,-500.0,0.00017534,2]
[334003604,1722672676998,-1037.63,0.00017534,2]
[334003605,1722672677009,-1737.33,0.00017534,2]
[334003606,1722672677019,-1095.94,0.00017534,2]
[334003607,1722672677031,-1906.6,0.00017534,2]
[334003608,1722672677047,-500.0,0.00017534,2]
[334003609,1722672677058,-500.0,0.00017534,2]
[334003610,1722672677068,-663.02,0.00017534,2]
[334003611,1722672677078,-602.45,0.00017534,2]
[334003612,1722672677087,-500.0,0.00017534,2]
[334003613,1722672677097,-1104.11,0.00017534,2]
[334003614,1722672677107,-3795.21,0.00017534,2]
[334003615,1722672677116,-579.0,0.000177,2]
[334003616,1722672677125,-400.0,0.00017742,2]
[334003617,1722672677135,-75031.74739191,0.0001776,2]
[334003618,1722672677145,-286.60574882,0.00017782,2]
[334003619,1722672677155,-474.29668839,0.00017782,2]
[334003620,1722672677165,-155.0,0.00017782,2]
[334003621,1722672677174,-500.0,0.00017801,2]
[334003622,1722672677184,-500.0,0.00017801,2]
[334003623,1722672677194,-163.81449687,0.00017807,2]
[334003624,1722672677203,-500.0,0.00017808,2]
[334003625,1722672677214,-500.0,0.00017808,2]
[334003626,1722672677224,-500.0,0.00017808,2]
[334003627,1722672677234,-500.0,0.00017808,2]
[334003628,1722672677244,-500.0,0.00017808,2]
[334003629,1722672677255,-500.0,0.00017808,2]
[334003630,1722672677265,-500.0,0.00017808,2]
[334003631,1722672677275,-500.0,0.00017808,2]
[334003632,1722672677284,-336.39,0.00017808,2]
[334003633,1722672677295,-500.0,0.00017808,2]
[334003634,1722672677306,-500.0,0.00017808,2]
[334003635,1722672677316,-500.0,0.00017808,2]
[334003636,1722672677328,-500.0,0.00017808,2]
[334003637,1722672677338,-500.0,0.00017808,2]
[334003638,1722672677351,-537.74,0.00017808,2]
[334003639,1722672677361,-343.68295834,0.00017808,2]
[334003640,1722672677371,-500.0,0.00017808,2]
[334003641,1722672677381,-500.0,0.00017808,2]
[334003642,1722672677390,-907.58,0.00017808,2]
[334003643,1722672677400,-500.0,0.00017808,2]
[334003644,1722672677409,-500.0,0.00017808,2]
[334003645,1722672677419,-500.0,0.00017808,2]
[334003646,1722672677430,-500.0,0.00017808,2]
[334003647,1722672677440,-500.0,0.00017808,2]
[334003648,1722672677451,-500.0,0.00017808,2]
[334003649,1722672677462,-560.39,0.00017808,2]
[334003650,1722672677471,-500.0,0.00017808,2]
[334003651,1722672677481,-500.0,0.00017808,2]
[334003652,1722672677492,-550.32,0.00017808,2]
[334003653,1722672677503,-500.0,0.00017808,2]
[334003654,1722672677514,-548.45,0.00017808,2]
[334003655,1722672677524,-500.0,0.00017808,2]
[334003656,1722672677533,-500.0,0.00017808,2]
[334003657,1722672677543,-500.0,0.00017808,2]
[334003658,1722672677553,-599.16,0.00017808,2]
[334003659,1722672677563,-500.0,0.00017808,2]
[334003660,1722672677573,-500.0,0.00017808,2]
[334003661,1722672677584,-500.0,0.00017808,2]
[334003662,1722672677594,-500.0,0.00017808,2]
[334003663,1722672677604,-500.0,0.00017808,2]
[334003664,1722672677614,-500.0,0.00017808,2]
[334003665,1722672677624,-528.88,0.00017808,2]
[334003666,1722672677633,-561.29,0.00017808,2]
[334003667,1722672677643,-500.0,0.00017808,2]
[334003668,1722672677652,-610.26666157,0.00017808,2]
[334003669,1722672677662,-500.0,0.00017808,2]
[334003670,1722672677672,-500.0,0.00017808,2]
[334003671,1722672677682,-500.0,0.00017808,2]
[334003672,1722672677692,-500.0,0.00017808,2]
[334003673,1722672677701,-500.0,0.00017808,2]
[334003674,1722672677714,-500.0,0.00017808,2]
[334003675,1722672677724,-500.0,0.00017808,2]
[334003676,1722672677734,-706.98,0.00017808,2]
[334003677,1722672677744,-500.0,0.00017808,2]
[334003678,1722672677754,-500.0,0.00017808,2]
[334003679,1722672677765,-500.0,0.00017808,2]
[334003680,1722672677775,-500.0,0.00017808,2]
[334003681,1722672677785,-500.0,0.00017808,2]
[334003682,1722672677796,-500.0,0.00017808,2]
[334003683,1722672677805,-696.17,0.00017808,2]
[334003684,1722672677815,-500.0,0.00017808,2]
[334003685,1722672677825,-500.0,0.00017808,2]
[334003686,1722672677834,-500.0,0.00017808,2]
[334003687,1722672677844,-500.0,0.00017808,2]
[334003688,1722672677854,-500.0,0.00017808,2]
[334003689,1722672677864,-500.0,0.00017808,2]
[334003690,1722672677873,-500.0,0.00017808,2]
[334003691,1722672677883,-500.0,0.00017808,2]
[334003692,1722672677893,-500.0,0.00017808,2]
[334003693,1722672677902,-500.0,0.00017808,2]
[334003694,1722672677912,-508.13,0.00017808,2]
[334003695,1722672677921,-924.44,0.00017808,2]
[334003696,1722672677931,-500.0,0.00017808,2]
[334003697,1722672677942,-748.67,0.00017808,2]
[334003698,1722672677951,-610.71,0.00017808,2]
[334003699,1722672677964,-500.0,0.00017808,2]
[334003700,1722672677974,-616.11,0.00017808,2]
[334003701,1722672677983,-500.0,0.00017808,2]
[334003702,1722672677994,-500.0,0.00017808,2]
[334003703,1722672678004,-500.0,0.00017808,2]
[334003704,1722672678013,-500.0,0.00017808,2]
[334003705,1722672678023,-500.0,0.00017808,2]
[334003706,1722672678033,-500.0,0.00017808,2]
[334003707,1722672678043,-500.0,0.00017808,2]
[334003708,1722672678052,-500.0,0.00017808,2]
[334003709,1722672678062,-526.29,0.00017808,2]
[334003710,1722672678072,-804.34,0.00017808,2]
[334003711,1722672678082,-500.0,0.00017808,2]
[334003712,1722672678169,-500.0,0.00017808,2]
[334003713,1722672678180,-500.0,0.00017808,2]
[334003714,1722672678189,-500.0,0.00017808,2]
[334003715,1722672678199,-500.0,0.00017808,2]
[334003716,1722672678209,-500.0,0.00017808,2]
[334003717,1722672678224,-590.71,0.00017808,2]
[334003718,1722672678234,-500.0,0.00017808,2]
[334003719,1722672678244,-500.0,0.00017808,2]
[334003720,1722672678253,-500.0,0.00017808,2]
[334003721,1722672678263,-572.46,0.00017808,2]
[334003722,1722672678272,-500.0,0.00017808,2]
[334003723,1722672678282,-500.0,0.00017808,2]
[334003724,1722672678291,-500.0,0.00017808,2]
[334003725,1722672678301,-500.0,0.00017808,2]
[334003726,1722672678310,-1146.83,0.00017808,2]
[334003727,1722672678320,-500.0,0.00017808,2]
[334003728,1722672678329,-951.73,0.00017808,2]
[334003729,1722672678339,-500.0,0.00017808,2]
[334003730,1722672678348,-888.24,0.00017808,2]
[334003731,1722672678358,-500.0,0.00017808,2]
[334003732,1722672678368,-1734.7,0.00017808,2]
[334003733,1722672678377,-500.0,0.00017808,2]
[334003734,1722672678387,-774.79,0.00017808,2]
[334003735,1722672678397,-500.0,0.00017808,2]
[334003736,1722672678407,-500.0,0.00017808,2]
[334003737,1722672678416,-500.0,0.00017808,2]
[334003738,1722672678426,-500.0,0.00017808,2]
[334003739,1722672678436,-500.0,0.00017808,2]
[334003740,1722672678446,-500.0,0.00017808,2]
[334003741,1722672678457,-682.31,0.00017808,2]
[334003742,1722672678469,-500.0,0.00017808,2]
[334003743,1722672678479,-518.06031618,0.00017808,2]
[334003744,1722672678489,-500.0,0.00017808,2]
[334003745,1722672678499,-500.0,0.00017808,2]
[334003746,1722672678510,-500.0,0.00017808,2]
[334003747,1722672678521,-500.0,0.00017808,2]
[334003748,1722672678531,-648.41,0.00017808,2]
[334003749,1722672678541,-500.0,0.00017808,2]
[334003750,1722672678550,-795.59,0.00017808,2]
[334003751,1722672678560,-500.0,0.00017808,2]
[334003752,1722672678569,-500.0,0.00017808,2]
[334003753,1722672678579,-500.0,0.00017808,2]
[334003754,1722672678590,-723.82,0.00017808,2]
[334003755,1722672678600,-500.0,0.00017808,2]
[334003756,1722672678609,-500.0,0.00017808,2]
[334003757,1722672678619,-500.0,0.00017808,2]
[334003758,1722672678629,-500.0,0.00017808,2]
[334003759,1722672678639,-500.0,0.00017808,2]
[334003760,1722672678650,-500.0,0.00017808,2]
[334003761,1722672678659,-1168.92,0.00017808,2]
[334003762,1722672678669,-819.92,0.00017808,2]
[334003763,1722672678679,-500.0,0.00017808,2]
[334003764,1722672678690,-500.0,0.00017808,2]
[334003765,1722672678699,-466.63259116,0.00017808,2]
[334003766,1722672678712,-508.94,0.00017808,2]
[334003767,1722672678722,-582.03,0.00017808,2]
[334003768,1722672678731,-500.0,0.00017808,2]
[334003769,1722672678741,-618.32,0.00017808,2]
[334003770,1722672678751,-500.0,0.00017808,2]
[334003771,1722672678761,-1159.6,0.00017808,2]
[334003772,1722672678771,-500.0,0.00017808,2]
[334003773,1722672678781,-500.0,0.00017808,2]
[334003774,1722672678792,-500.0,0.00017808,2]
[334003775,1722672678802,-500.0,0.00017808,2]
[334003776,1722672678811,-500.0,0.00017808,2]
[334003777,1722672678821,-577.66,0.00017808,2]
[334003778,1722672678831,-500.0,0.00017808,2]
[334003779,1722672678842,-500.0,0.00017808,2]
[334003780,1722672678853,-549.41,0.00017808,2]
[334003781,1722672678863,-500.0,0.00017808,2]
[334003782,1722672678874,-530.35,0.00017808,2]
[334003783,1722672678884,-500.0,0.00017808,2]
[334003784,1722672678894,-500.0,0.00017808,2]
[334003785,1722672678904,-525.77,0.00017808,2]
[334003786,1722672678914,-925.21,0.00017808,2]
[334003787,1722672678924,-500.0,0.00017808,2]
[334003788,1722672678933,-500.0,0.00017808,2]
[334003789,1722672678942,-500.0,0.00017808,2]
[334003790,1722672678952,-500.0,0.00017808,2]
[334003791,1722672678964,-500.0,0.00017808,2]
[334003792,1722672678974,-500.0,0.00017808,2]
[334003793,1722672678984,-904.56,0.00017808,2]
[334003794,1722672678993,-386.92354753,0.00017808,2]
[334003795,1722672679004,-501.53,0.00017808,2]
[334003796,1722672679014,-500.0,0.00017808,2]
[334003797,1722672679023,-500.0,0.00017808,2]
[334003798,1722672679032,-500.0,0.00017808,2]
[334003799,1722672679041,-622.55,0.00017808,2]
[334003800,1722672679051,-540.33,0.00017808,2]
[334003801,1722672679061,-500.0,0.00017808,2]
[334003802,1722672679071,-602.82,0.00017808,2]
[334003803,1722672679081,-644.95,0.00017808,2]
[334003804,1722672679090,-503.96,0.00017808,2]
[334003805,1722672679100,-500.0,0.00017808,2]
[334003806,1722672679109,-500.0,0.00017808,2]
[334003807,1722672679119,-825.13,0.00017808,2]
[334003808,1722672679128,-500.0,0.00017808,2]
[334003809,1722672679139,-500.0,0.00017808,2]
[334003810,1722672679149,-500.0,0.00017808,2]
[334003811,1722672679158,-500.0,0.00017808,2]
[334003812,1722672679168,-1519.4,0.00017808,2]
[334003813,1722672679178,-500.0,0.00017808,2]
[334003814,1722672679187,-500.0,0.00017808,2]
[334003815,1722672679196,-684.44,0.00017808,2]
[334003816,1722672679206,-426.574502,0.00017808,2]
[334003817,1722672679217,-500.0,0.00017808,2]
[334003818,1722672679228,-500.0,0.00017808,2]
[334003819,1722672679237,-500.0,0.00017808,2]
[334003820,1722672679248,-500.0,0.00017808,2]
[334003821,1722672679257,-584.67,0.00017808,2]
[334003822,1722672679268,-604.12,0.00017808,2]
[334003823,1722672679278,-528.36,0.00017808,2]
[334003824,1722672679288,-616.8,0.00017808,2]
[334003825,1722672679298,-500.0,0.00017808,2]
[334003826,1722672679307,-500.0,0.00017808,2]
[334003827,1722672679317,-509.32,0.00017808,2]
[334003828,1722672679326,-500.0,0.00017808,2]
[334003829,1722672679336,-500.0,0.00017808,2]
[334003830,1722672679345,-743.5,0.00017808,2]
[334003831,1722672679355,-1060.37,0.00017808,2]
[334003832,1722672679364,-500.0,0.00017808,2]
[334003833,1722672679374,-848.13,0.00017808,2]
[334003834,1722672679383,-774.18,0.00017808,2]
[334003835,1722672679393,-712.98,0.00017808,2]
[334003836,1722672679402,-500.0,0.00017808,2]
[334003837,1722672679411,-772.65,0.00017808,2]
[334003838,1722672679421,-744.14,0.00017808,2]
[334003839,1722672679430,-511.70541856,0.00017808,2]
[334003840,1722672679440,-500.0,0.00017808,2]
[334003841,1722672679449,-500.0,0.00017808,2]
[334003842,1722672679458,-958.9,0.00017808,2]
[334003843,1722672679469,-500.0,0.00017808,2]
[334003844,1722672679478,-500.0,0.00017808,2]
[334003845,1722672679487,-1086.35,0.00017808,2]
[334003846,1722672679498,-500.0,0.00017808,2]
[334003847,1722672679509,-500.0,0.00017808,2]
[334003848,1722672679524,-500.0,0.00017808,2]
[334003849,1722672679535,-500.0,0.00017808,2]
[334003850,1722672679545,-500.0,0.00017808,2]
[334003851,1722672679555,-879.02,0.00017808,2]
[334003852,1722672679564,-1083.8,0.00017808,2]
[334003853,1722672679575,-500.0,0.00017808,2]
[334003854,1722672679584,-500.0,0.00017808,2]
[334003855,1722672679596,-515.45,0.00017808,2]
[334003856,1722672679606,-500.0,0.00017808,2]
[334003857,1722672679616,-500.0,0.00017808,2]
[334003858,1722672679626,-582.42,0.00017808,2]
[334003859,1722672679636,-500.0,0.00017808,2]
[334003860,1722672679645,-500.0,0.00017808,2]
[334003861,1722672679655,-500.0,0.00017808,2]
[334003862,1722672679664,-500.0,0.00017808,2]
[334003863,1722672679675,-500.0,0.00017808,2]
[334003864,1722672679685,-500.0,0.00017808,2]
[334003865,1722672679694,-500.0,0.00017808,2]
[334003866,1722672679703,-500.0,0.00017808,2]
[334003867,1722672679714,-1218.45,0.00017808,2]
[334003868,1722672679724,-500.0,0.00017808,2]
[334003869,1722672679733,-527.92,0.00017808,2]
[334003870,1722672679744,-500.0,0.00017808,2]
[334003871,1722672679754,-500.0,0.00017808,2]
[334003872,1722672679764,-500.0,0.00017808,2]
[334003873,1722672679773,-500.0,0.00017808,2]
[334003874,1722672679783,-611.34,0.00017808,2]
[334003875,1722672679793,-500.0,0.00017808,2]
[334003876,1722672679803,-500.0,0.00017808,2]
[334003877,1722672679813,-500.0,0.00017808,2]
[334003878,1722672679822,-500.0,0.00017808,2]
[334003879,1722672679832,-705.81,0.00017808,2]
[334003880,1722672679842,-661.0,0.00017808,2]
[334003881,1722672679851,-342.67,0.00017808,2]
[334003882,1722672679860,-231.83624771,0.00017808,2]
[334003883,1722672679870,-500.0,0.00017808,2]
[334003884,1722672679880,-500.0,0.00017808,2]
[334003885,1722672679890,-500.0,0.00017808,2]
[334003886,1722672679899,-638.82,0.00017808,2]
[334003887,1722672679909,-744.23,0.00017808,2]
[334003888,1722672679918,-500.0,0.00017808,2]
[334003889,1722672679928,-500.0,0.00017808,2]
[334003890,1722672679939,-570.99,0.00017808,2]
[334003891,1722672679949,-727.54,0.00017808,2]
[334003892,1722672679959,-500.0,0.00017808,2]
[334003893,1722672679968,-500.0,0.00017808,2]
[334003894,1722672679978,-617.25,0.00017808,2]
[334003895,1722672679987,-500.0,0.00017808,2]
[334003896,1722672679997,-714.79,0.00017808,2]
[334003897,1722672680006,-556.41,0.00017808,2]
[334003898,1722672680017,-500.0,0.00017808,2]
[334003899,1722672680029,-451.3967142,0.00017808,2]
[334003900,1722672680040,-500.0,0.00017808,2]
[334003901,1722672680049,-788.92,0.00017808,2]
[334003902,1722672680058,-1029.17,0.00017808,2]
[334003903,1722672680067,-500.0,0.00017808,2]
[334003904,1722672680076,-500.0,0.00017808,2]
[334003905,1722672680085,-710.03,0.00017808,2]
[334003906,1722672680095,-738.88,0.00017808,2]
[334003907,1722672680106,-539.38,0.00017808,2]
[334003908,1722672680116,-808.77,0.00017808,2]
[334003909,1722672680125,-399.70696754,0.00017808,2]
[334003910,1722672680134,-500.0,0.00017808,2]
[334003911,1722672680143,-500.0,0.00017808,2]
[334003912,1722672680152,-830.0,0.00017808,2]
[334003913,1722672680162,-554.02,0.00017808,2]
[334003914,1722672680172,-500.0,0.00017808,2]
[334003915,1722672680181,-525.28,0.00017808,2]
[334003916,1722672680191,-726.72,0.00017808,2]
[334003917,1722672680200,-500.0,0.00017808,2]
[334003918,1722672680209,-500.0,0.00017808,2]
[334003919,1722672680219,-500.0,0.00017808,2]
[334003920,1722672680228,-663.62,0.00017808,2]
[334003921,1722672680237,-500.0,0.00017808,2]
[334003922,1722672680246,-500.0,0.00017808,2]
[334003923,1722672680255,-547.37,0.00017808,2]
[334003924,1722672680265,-500.0,0.00017808,2]
[334003925,1722672680274,-500.0,0.00017808,2]
[334003926,1722672680283,-658.43,0.00017808,2]
[334003927,1722672680292,-529.53,0.00017808,2]
[334003928,1722672680302,-1319.94,0.00017808,2]
[334003929,1722672680311,-1146.49,0.00017808,2]
[334003930,1722672680320,-4233.34,0.00017808,2]
[334003931,1722672680329,-500.0,0.00017808,2]
[334003932,1722672680339,-955.66,0.00017808,2]
[334003933,1722672680348,-595.12,0.00017808,2]
[334003934,1722672680357,-746.94,0.00017808,2]
[334003935,1722672680366,-673.07,0.00017808,2]
[334003936,1722672680375,-500.0,0.00017808,2]
[334003937,1722672680385,-834.43,0.00017808,2]
[334003938,1722672680394,-9414.57,0.00017808,2]
[334003939,1722672680403,-500.0,0.00017808,2]